fUSD/lending_fUSD_20240125
["ID","MTS","AMOUNT","RATE_DAILY","PERIOD"]
[312753431,1706194248190,-500.0,0.00054794,120]
[312753432,1706194248199,-500.0,0.00054794,120]
[312753433,1706194248210,-500.0,0.00054794,120]
[312753434,1706194248219,-500.0,0.00054794,120]
[312753435,1706194248228,-500.0,0.00054794,120]
[312753436,1706194248237,-500.0,0.00054794,120]
[312753437,1706194248247,-500.0,0.00054794,120]
[312753438,1706194248256,-500.0,0.00054794,120]
[312753439,1706194248266,-500.0,0.00054794,120]
[312753440,1706194248275,-500.0,0.00054794,120]
[312753441,1706194248284,-500.0,0.00054794,120]
[312753442,1706194248293,-500.0,0.00054794,120]
[312753443,1706194248303,-500.0,0.00054794,120]
[312753444,1706194248312,-500.0,0.00054794,120]
[312753445,1706194248322,-500.0,0.00054794,120]
[312753446,1706194248333,-500.0,0.00054794,120]
[312753447,1706194248343,-500.0,0.00054794,120]
[312753448,1706194248353,-500.0,0.00054794,120]
[312753449,1706194248363,-500.0,0.00054794,120]
[312753450,1706194248372,-281.3,0.00054794,120]
[312753451,1706194248382,-500.0,0.00054794,120]
[312753452,1706194248391,-289.66200008,0.00054794,120]
[312753453,1706194248401,-500.0,0.00054794,120]
[312753454,1706194248410,-500.0,0.00054794,120]
[312753455,1706194248419,-500.0,0.00054795,120]
[312753456,1706194248428,-784.41437988,0.000548,30]
[312753457,1706194248438,-167.0877099,0.00054813,60]
[312753458,1706194248448,-500.0,0.0005488,120]
[312753459,1706194248458,-200.0,0.00054904,120]
[312753460,1706194248467,-155.08765283,0.00054946,60]
[312753461,1706194248477,-500.0,0.00054966,120]
[312753462,1706194248486,-379.16126278,0.00055,4]
[312753463,1706194248495,-4481.3785,0.00055,100]
[312753464,1706194248504,-165.0,0.00055,120]
[312753465,1706194248516,-500.0,0.00055051,120]
[312753466,1706194248526,-166.8258526,0.00055098,33]
[312753467,1706194248535,-500.0,0.00055137,120]
[312753468,1706194248545,-500.0,0.00055223,120]
[312753469,1706194248555,-155.05338306,0.00055242,2]
[312753470,1706194248565,-173.0,0.0005529,2]
[312753471,1706194248575,-150.0,0.000553,120]
[312753472,1706194248585,-500.0,0.00055308,120]
[312753473,1706194248595,-1567.0748888,0.00055318,16]
[312753474,1706194248606,-350.78,0.00055322,10]
[312753475,1706194248615,-32147.44318222,0.00055332,13]
[312753476,1706194248633,-1012.70333,0.00055332,13]
[312753477,1706194248973,-63802.28627868,0.00055332,13]
[312753478,1706194248984,-172.84,0.00055341,120]
[312753479,1706194248995,-1865.25983716,0.00055342,2]
[312753480,1706194249006,-500.0,0.00055342,2]
[312753481,1706194249019,-500.0,0.00055342,120]
[312753482,1706194249029,-500.0,0.00055342,120]
[312753483,1706194249040,-500.0,0.00055342,120]
[312753484,1706194249050,-500.0,0.00055342,120]
[312753485,1706194249060,-500.0,0.00055342,120]
[312753486,1706194249070,-500.0,0.00055342,120]
[312753487,1706194249079,-500.0,0.00055342,120]
[312753488,1706194249088,-793.23,0.00055342,2]
[312753489,1706194249097,-500.0,0.00055342,120]
[312753490,1706194249107,-500.0,0.00055342,120]
[312753491,1706194249117,-500.0,0.00055342,120]
[312753492,1706194249127,-500.0,0.00055342,120]
[312753493,1706194249139,-640.01759903,0.00055342,120]
[312753494,1706194249151,-500.0,0.00055342,120]
[312753495,1706194249160,-635.80494036,0.00055342,120]
[312753496,1706194249170,-500.0,0.00055342,120]
[312753497,1706194249179,-500.0,0.00055342,120]
[312753498,1706194249188,-500.0,0.00055342,120]
[312753499,1706194249197,-500.0,0.00055342,120]
[312753500,1706194249206,-500.0,0.00055342,120]
[312753501,1706194249216,-500.0,0.00055342,120]
[312753502,1706194249226,-600.0,0.00055342,120]
[312753503,1706194249236,-543.37,0.00055342,120]
[312753504,1706194249245,-500.0,0.00055342,120]
[312753506,1706194249255,-609.70728522,0.00055342,120]
[312753507,1706194249266,-507.2626542,0.00055342,120]
[312753508,1706194249276,-500.0,0.00055342,120]
[312753509,1706194249286,-500.0,0.00055342,120]
[312753510,1706194249297,-500.0,0.00055342,120]
[312753511,1706194249306,-500.0,0.00055342,120]
[312753512,1706194249316,-536.10645892,0.00055342,120]
[312753513,1706194249326,-500.0,0.00055342,7]
[312753514,1706194249335,-500.0,0.00055342,120]
[312753515,1706194249345,-500.0,0.00055342,120]
[312753516,1706194249354,-500.0,0.00055342,120]
[312753517,1706194249363,-500.0,0.00055342,120]
[312753518,1706194249372,-500.0,0.00055342,120]
[312753519,1706194249381,-500.0,0.00055342,2]
[312753520,1706194249390,-500.0,0.00055342,120]
[312753521,1706194249399,-500.0,0.00055342,120]
[312753522,1706194249408,-500.0,0.00055342,120]
[312753523,1706194249417,-504.15,0.00055342,120]
[312753524,1706194249425,-500.0,0.00055342,120]
[312753525,1706194249434,-500.0,0.00055342,120]
[312753526,1706194249443,-500.0,0.00055342,120]
[312753527,1706194249452,-500.0,0.00055342,120]
[312753528,1706194249461,-500.0,0.00055342,120]
[312753529,1706194249470,-500.0,0.00055342,120]
[312753530,1706194249480,-500.0,0.00055342,120]
[312753531,1706194249489,-500.0,0.00055342,120]
[312753532,1706194249498,-500.0,0.00055342,120]
[312753533,1706194249507,-500.0,0.00055342,120]
[312753534,1706194249518,-500.0,0.00055342,120]
[312753535,1706194249526,-500.0,0.00055342,120]
[312753536,1706194249536,-500.0,0.00055342,120]
[312753537,1706194249545,-500.0,0.00055342,120]
[312753538,1706194249555,-500.0,0.00055342,120]
[312753539,1706194249564,-500.0,0.00055342,120]
[312753540,1706194249575,-500.0,0.00055342,120]
[312753541,1706194249585,-500.0,0.00055342,120]
[312753542,1706194249595,-500.0,0.00055342,120]
[312753543,1706194249604,-500.0,0.00055342,120]
[312753544,1706194249613,-500.0,0.00055342,120]
[312753545,1706194249622,-500.0,0.00055342,120]
[312753546,1706194249630,-500.0,0.00055342,120]
[312753547,1706194249640,-500.0,0.00055342,120]
[312753548,1706194249649,-500.0,0.00055342,120]
[312753549,1706194249658,-500.0,0.00055342,120]
[312753550,1706194249667,-310.46645417,0.00055342,120]
[312753551,1706194249677,-500.0,0.00055342,120]
[312753552,1706194249686,-236.53895099,0.00055342,120]
[312753553,1706194249694,-150.0,0.00055342,120]
[312753554,1706194249704,-500.0,0.00055342,120]
[312753555,1706194249713,-500.0,0.00055342,120]
[312753556,1706194249722,-500.0,0.00055342,120]
[312753557,1706194249731,-500.0,0.00055342,120]
[312753558,1706194249740,-500.0,0.00055342,120]
[312753559,1706194249749,-500.0,0.00055342,120]
[312753560,1706194249758,-500.0,0.00055342,120]
[312753561,1706194249768,-500.0,0.00055342,120]
[312753562,1706194249777,-500.0,0.00055342,120]
[312753563,1706194249786,-500.0,0.00055342,120]
[312753564,1706194249794,-500.0,0.00055342,120]
[312753565,1706194249803,-500.0,0.00055342,120]
[312753566,1706194249812,-605.84,0.00055342,120]
[312753567,1706194249822,-500.0,0.00055342,120]
[312753568,1706194249831,-500.0,0.00055342,120]
[312753569,1706194249841,-500.0,0.00055342,120]
[312753570,1706194249850,-500.0,0.00055342,120]
[312753571,1706194249859,-500.0,0.00055342,120]
[312753572,1706194249869,-500.0,0.00055342,120]
[312753573,1706194249879,-500.0,0.00055342,120]
[312753574,1706194249888,-500.0,0.00055342,120]
[312753575,1706194249897,-500.0,0.00055342,120]
[312753576,1706194249906,-500.0,0.00055342,120]
[312753577,1706194249917,-500.0,0.00055342,120]
[312753578,1706194249928,-500.0,0.00055342,120]
[312753579,1706194249937,-500.0,0.00055342,120]
[312753580,1706194249947,-500.0,0.00055342,120]
[312753581,1706194249956,-500.0,0.00055342,120]
[312753582,1706194249966,-500.0,0.00055342,120]
[312753583,1706194249975,-500.0,0.00055342,120]
[312753584,1706194249985,-343.81029055,0.00055342,120]
[312753585,1706194249994,-500.0,0.00055342,120]
[312753586,1706194250003,-500.0,0.00055342,120]
[312753587,1706194250015,-500.0,0.00055342,120]
[312753588,1706194250024,-500.0,0.00055342,120]
[312753589,1706194250034,-500.0,0.00055342,120]
[312753590,1706194250043,-500.0,0.00055342,120]
[312753591,1706194250052,-500.0,0.00055342,120]
[312753592,1706194250061,-500.0,0.00055342,120]
[312753593,1706194250071,-500.0,0.00055342,120]
[312753594,1706194250081,-500.0,0.00055342,120]
[312753595,1706194250091,-500.0,0.00055342,120]
[312753596,1706194250100,-500.0,0.00055342,120]
[312753597,1706194250109,-500.0,0.00055342,120]
[312753598,1706194250118,-500.0,0.00055342,120]
[312753599,1706194250128,-500.0,0.00055342,120]
[312753600,1706194250142,-658.8,0.00055342,120]
[312753601,1706194250151,-500.0,0.00055342,120]
[312753602,1706194250160,-931.12,0.00055342,5]
[312753603,1706194250169,-500.0,0.00055342,120]
[312753604,1706194250179,-500.0,0.00055342,120]
[312753605,1706194250188,-500.0,0.00055342,120]
[312753606,1706194250197,-500.0,0.00055342,120]
[312753607,1706194250207,-500.0,0.00055342,120]
[312753608,1706194250217,-500.0,0.00055342,120]
[312753609,1706194250227,-500.0,0.00055342,120]
[312753610,1706194250236,-500.0,0.00055342,120]
[312753611,1706194250245,-500.0,0.00055342,120]
[312753612,1706194250254,-500.0,0.00055342,60]
[312753613,1706194250265,-500.0,0.00055342,120]
[312753614,1706194250275,-500.0,0.00055342,120]
[312753615,1706194250284,-500.0,0.00055342,120]
[312753616,1706194250294,-1846.76,0.00055342,120]
[312753617,1706194250303,-869.75,0.00055342,120]
[312753618,1706194250312,-500.0,0.00055342,120]
[312753619,1706194250322,-500.0,0.00055342,20]
[312753620,1706194250331,-500.0,0.00055342,120]
[312753621,1706194250340,-593.64,0.00055342,120]
[312753622,1706194250349,-500.0,0.00055342,120]
[312753623,1706194250359,-500.0,0.00055342,120]
[312753624,1706194250369,-500.0,0.00055342,120]
[312753625,1706194250378,-500.0,0.00055342,120]
[312753626,1706194250387,-1118.55,0.00055342,120]
[312753627,1706194250397,-500.0,0.00055342,120]
[312753628,1706194250407,-500.0,0.00055342,120]
[312753629,1706194250416,-500.0,0.00055342,7]
[312753630,1706194250425,-500.0,0.00055342,120]
[312753631,1706194250435,-500.0,0.00055342,120]
[312753632,1706194250446,-500.0,0.00055342,120]
[312753633,1706194250455,-500.0,0.00055342,120]
[312753634,1706194250465,-500.0,0.00055342,2]
[312753635,1706194250475,-253.28,0.00055342,120]
[312753636,1706194250485,-188.2,0.00055342,120]
[312753637,1706194250494,-500.0,0.00055342,120]
[312753638,1706194250503,-500.0,0.00055342,120]
[312753639,1706194250514,-500.0,0.00055342,5]
[312753640,1706194250523,-500.0,0.00055342,120]
[312753641,1706194250532,-500.0,0.00055342,120]
[312753642,1706194250542,-510.27,0.00055342,120]
[312753643,1706194250551,-500.0,0.00055342,120]
[312753644,1706194250560,-603.73135131,0.00055342,120]
[312753645,1706194250570,-324.67526658,0.00055342,120]
[312753646,1706194250580,-744.82,0.00055342,120]
[312753647,1706194250589,-500.0,0.00055342,120]
[312753648,1706194250599,-461.42822069,0.00055342,120]
[312753649,1706194250613,-38.57177931,0.00055342,120]
[312753650,1706194250622,-500.0,0.00055342,120]
[312753651,1706194250633,-1046.55,0.00055342,120]
[312753652,1706194250642,-500.0,0.00055342,120]
[312753653,1706194250652,-500.0,0.00055342,120]
[312753654,1706194250661,-500.0,0.00055342,120]
[312753655,1706194250671,-500.0,0.00055342,120]
[312753656,1706194250680,-500.0,0.00055342,120]
[312753657,1706194250691,-486.15583972,0.00055342,120]
[312753658,1706194250707,-13.84416028,0.00055342,120]
[312753659,1706194250716,-423.81472386,0.00055342,120]
[312753660,1706194250728,-76.18527614,0.00055342,120]
[312753661,1706194250737,-500.0,0.00055342,120]
[312753662,1706194250747,-500.0,0.00055342,120]
[312753663,1706194250756,-500.0,0.00055342,120]
[312753664,1706194250767,-500.0,0.00055342,120]
[312753665,1706194250776,-500.0,0.00055342,120]
[312753666,1706194250786,-500.0,0.00055342,120]
[312753667,1706194250795,-500.0,0.00055342,120]
[312753668,1706194250805,-500.0,0.00055342,120]
[312753669,1706194250815,-286.72,0.00055342,120]
[312753670,1706194250824,-500.0,0.00055342,120]
[312753671,1706194250833,-500.0,0.00055342,120]
[312753672,1706194250843,-500.0,0.00055342,120]
[312753673,1706194250854,-161.9,0.00055342,120]
[312753674,1706194250863,-500.0,0.00055342,120]
[312753675,1706194250873,-500.0,0.00055342,120]
[312753676,1706194250883,-500.0,0.00055342,120]
[312753677,1706194250893,-500.0,0.00055342,120]
[312753678,1706194250903,-500.0,0.00055394,120]
[312753679,1706194250912,-500.0,0.00055479,120]
[312753680,1706194250922,-500.0,0.00055565,120]
[312753681,1706194250932,-1090.19472386,0.000556,120]
[312753682,1706194250944,-909.80527614,0.000556,120]
[312753683,1706194250953,-500.0,0.00055651,120]
[312753684,1706194250963,-500.0,0.00055736,120]
[312753685,1706194250972,-251.380755,0.00055796,120]
[312753686,1706194250982,-150.0,0.000558,120]
[312753687,1706194250992,-500.0,0.00055822,120]
[312753688,1706194251001,-1242.11086892,0.0005588,13]
[312753689,1706194251023,-8067.54511133,0.0005588,13]
[312753690,1706194251036,-10457.28938952,0.0005588,13]
[312753691,1706194251048,-11862.2832772,0.0005588,13]
[312753692,1706194251066,-2499.16971345,0.0005588,13]
[312753695,1706194274008,332.07545951,0.00022999,2]
[312753696,1706194274031,2000.0,0.00022999,2]
[312753697,1706194274055,1919.02377964,0.00022999,2]
[312753698,1706194274807,80.97622036,0.00022999,2]
[312753699,1706194275787,420.3224339,0.00022079,2]
[312753710,1706194345264,1882.01883733,0.00022076,2]
[312753717,1706194375270,5122.65872877,0.00022079,2]
[312753718,1706194375294,968.17919053,0.00022079,2]
[312753719,1706194390809,447.16599203,0.00020466,2]
[312753720,1706194446928,5175.66238512,0.0002,2]
[312753723,1706194513232,833.99243232,0.00022075,2]
[312753724,1706194513256,167.53101182,0.00022075,2]
[312753725,1706194537886,-27544.775928,0.00022764,2]
[312753726,1706194537910,-279.7293285,0.00022765,2]
[312753727,1706194537933,-4632.53528402,0.00022765,2]
[312753728,1706194537957,-1419.12284278,0.00022765,2]
[312753729,1706194537982,-8019.49600172,0.00022765,2]
[312753730,1706194538007,-226.70008479,0.00022765,4]
[312753731,1706194538031,-1770.29863834,0.00022766,2]
[312753732,1706194538055,-3048.07320636,0.00022766,2]
[312753733,1706194538079,-2605.00254131,0.00022766,2]
[312753734,1706194538102,-43062.1051183,0.00022768,2]
[312753735,1706194538125,-563.0,0.00022768,2]
[312753736,1706194538149,-6806.0,0.00022769,2]
[312753737,1706194538175,-2500.0,0.00022898,2]
[312753738,1706194538200,-214.45874033,0.00022899,2]
[312753739,1706194538225,-184.67736102,0.000229,2]
[312753740,1706194538252,-1648.33400156,0.000229,2]
[312753741,1706194538276,-917.22815046,0.000229,2]
[312753742,1706194538300,-376.22518156,0.000229,6]
[312753743,1706194538325,-215.6029906,0.00022972,2]
[312753744,1706194538350,-1000.0,0.00022983,2]
[312753745,1706194538374,-155.84856922,0.00022984,2]
[312753746,1706194538399,-285.40909205,0.00022984,2]
[312753747,1706194538424,-513141.02718114,0.00022985,2]
[312753748,1706194538448,-59931.0,0.00022986,2]
[312753749,1706194538471,-150.0,0.00022994,2]
[312753750,1706194538498,-301.91289594,0.00022995,2]
[312753751,1706194538521,-155.0,0.00022995,2]
[312753752,1706194538545,-2619.74608901,0.00022995,2]
[312753753,1706194538569,-295.78388584,0.00022995,2]
[312753754,1706194538594,-1262.37262765,0.00022995,2]
[312753755,1706194538618,-654.12664223,0.00022995,2]
[312753756,1706194538641,-2704.17548496,0.00022995,2]
[312753757,1706194538665,-571.26644582,0.00022995,2]
[312753758,1706194538689,-226.55151585,0.00022995,2]
[312753759,1706194538711,-156.63921255,0.00022995,2]
[312753760,1706194538734,-214.25314506,0.00022995,2]
[312753761,1706194538759,-2205.1,0.00022995,2]
[312753762,1706194538782,-4627.55845064,0.00022995,2]
[312753763,1706194538806,-155.32990661,0.00022995,2]
[312753764,1706194538831,-524.31366153,0.00022995,2]
[312753765,1706194538854,-155.49445033,0.00022995,2]
[312753767,1706194538878,-1115.45000218,0.00022995,2]
[312753768,1706194538902,-941.78794294,0.00022995,2]
[312753769,1706194538926,-1853.57655761,0.00022995,2]
[312753770,1706194538951,-182.53563924,0.00022995,2]
[312753771,1706194538975,-357.10627192,0.00022995,2]
[312753772,1706194538999,-1546.48023014,0.00022995,2]
[312753773,1706194539023,-1761.91449993,0.00022995,2]
[312753774,1706194539045,-226.11786442,0.00022995,2]
[312753775,1706194539069,-277.97004527,0.00022995,2]
[312753776,1706194539093,-1813.68084069,0.00022997,2]
[312753777,1706194539117,-33789.68053584,0.00022998,2]
[312753778,1706194539142,-506416.32163238,0.00022998,2]
[312753779,1706194539165,-218.18270859,0.00022999,2]
[312753780,1706194539188,-422.96048099,0.00022999,2]
[312753781,1706194539214,-271171.06979766,0.00022999,2]
[312753782,1706194539237,-500.0,0.00022999,2]
[312753783,1706194539260,-500.0,0.00022999,2]
[312753784,1706194539284,-500.0,0.00022999,2]
[312753785,1706194539434,-500.0,0.00022999,2]
[312753786,1706194539458,-246.54635734,0.00022999,2]
[312753787,1706194539482,-500.0,0.00022999,2]
[312753788,1706194539506,-386.49515998,0.00022999,2]
[312753789,1706194539531,-500.0,0.00022999,2]
[312753790,1706194539554,-500.0,0.00022999,2]
[312753791,1706194539581,-500.0,0.00022999,2]
[312753792,1706194539604,-531.82071559,0.00022999,2]
[312753793,1706194539627,-255.95148231,0.00022999,2]
[312753794,1706194539659,-500.0,0.00022999,2]
[312753795,1706194539683,-500.0,0.00022999,2]
[312753796,1706194539707,-500.0,0.00022999,2]
[312753797,1706194539731,-500.0,0.00022999,2]
[312753798,1706194539754,-500.0,0.00022999,2]
[312753799,1706194539778,-500.0,0.00022999,2]
[312753800,1706194539803,-500.0,0.00022999,2]
[312753801,1706194539842,-500.0,0.00022999,2]
[312753802,1706194539876,-500.0,0.00022999,2]
[312753803,1706194539901,-500.0,0.00022999,2]
[312753804,1706194539927,-500.0,0.00022999,2]
[312753805,1706194539952,-500.0,0.00022999,2]
[312753806,1706194539977,-500.0,0.00022999,2]
[312753807,1706194540003,-500.0,0.00022999,2]
[312753808,1706194540028,-500.0,0.00022999,2]
[312753809,1706194540054,-500.0,0.00022999,2]
[312753810,1706194540080,-500.0,0.00022999,2]
[312753811,1706194540106,-500.0,0.00022999,2]
[312753812,1706194540131,-500.0,0.00022999,2]
[312753813,1706194540155,-500.0,0.00022999,2]
[312753814,1706194540180,-500.0,0.00022999,2]
[312753815,1706194540206,-500.0,0.00022999,2]
[312753816,1706194540232,-500.0,0.00022999,2]
[312753817,1706194540258,-500.0,0.00022999,2]
[312753818,1706194540282,-500.0,0.00022999,2]
[312753819,1706194540306,-500.0,0.00022999,2]
[312753820,1706194540333,-500.0,0.00022999,2]
[312753821,1706194540358,-500.0,0.00022999,2]
[312753822,1706194540383,-500.0,0.00022999,2]
[312753823,1706194540408,-734.11218073,0.00022999,2]
[312753824,1706194540438,-500.0,0.00022999,2]
[312753825,1706194540464,-500.0,0.00022999,2]
[312753826,1706194540489,-305.72950203,0.00022999,2]
[312753827,1706194540513,-500.0,0.00022999,2]
[312753828,1706194540538,-500.0,0.00022999,2]
[312753829,1706194540563,-500.0,0.00022999,2]
[312753830,1706194540587,-467.95153309,0.00022999,2]
[312753831,1706194540612,-734.11218073,0.00022999,2]
[312753832,1706194540637,-500.0,0.00022999,2]
[312753833,1706194540663,-734.11218073,0.00022999,2]
[312753834,1706194540688,-500.0,0.00022999,2]
[312753835,1706194540714,-734.11218073,0.00022999,2]
[312753836,1706194540740,-734.11218073,0.00022999,2]
[312753837,1706194540764,-734.11218073,0.00022999,2]
[312753838,1706194540789,-734.11218073,0.00022999,2]
[312753839,1706194540817,-500.0,0.00022999,2]
[312753840,1706194540842,-734.11218073,0.00022999,2]
[312753841,1706194540866,-734.11218073,0.00022999,2]
[312753842,1706194540891,-500.0,0.00022999,2]
[312753843,1706194540915,-734.11218073,0.00022999,2]
[312753844,1706194540941,-734.11218073,0.00022999,2]
[312753845,1706194540966,-734.11218073,0.00022999,2]
[312753846,1706194540992,-734.11218073,0.00022999,2]
[312753847,1706194541018,-734.11218073,0.00022999,2]
[312753848,1706194541043,-500.0,0.00022999,2]
[312753849,1706194541069,-734.11218073,0.00022999,2]
[312753850,1706194541093,-734.11218073,0.00022999,2]
[312753851,1706194541117,-500.0,0.00022999,2]
[312753852,1706194541143,-734.11218073,0.00022999,2]
[312753853,1706194541167,-734.11218073,0.00022999,2]
[312753854,1706194541191,-500.0,0.00022999,2]
[312753855,1706194541218,-734.11218073,0.00022999,2]
[312753856,1706194541244,-734.11218073,0.00022999,2]
[312753857,1706194541271,-734.11218073,0.00022999,2]
[312753858,1706194541295,-734.11218073,0.00022999,2]
[312753859,1706194541320,-734.11218073,0.00022999,2]
[312753860,1706194541344,-734.11218073,0.00022999,2]
[312753861,1706194541368,-734.11218073,0.00022999,2]
[312753862,1706194541392,-500.0,0.00022999,2]
[312753863,1706194541416,-734.11218073,0.00022999,2]
[312753864,1706194541440,-408.03962171,0.00022999,2]
[312753865,1706194541464,-734.11218073,0.00022999,2]
[312753866,1706194541488,-734.11218073,0.00022999,2]
[312753867,1706194541513,-734.11218073,0.00022999,2]
[312753868,1706194541538,-734.11218073,0.00022999,2]
[312753869,1706194541563,-734.11218073,0.00022999,2]
[312753870,1706194541588,-734.11218073,0.00022999,2]
[312753871,1706194541777,-734.11218073,0.00022999,2]
[312753872,1706194541803,-734.11218073,0.00022999,2]
[312753873,1706194541828,-734.11218073,0.00022999,2]
[312753874,1706194541856,-734.11218073,0.00022999,2]
[312753875,1706194541881,-734.11218073,0.00022999,2]
[312753876,1706194541907,-734.11218073,0.00022999,2]
[312753877,1706194541932,-734.11218073,0.00022999,2]
[312753878,1706194541957,-734.11218073,0.00022999,2]
[312753879,1706194541983,-734.11218073,0.00022999,2]
[312753880,1706194542009,-734.11218073,0.00022999,2]
[312753881,1706194542034,-734.11218073,0.00022999,2]
[312753882,1706194542059,-734.11218073,0.00022999,2]
[312753883,1706194542084,-734.11218073,0.00022999,2]
[312753884,1706194542109,-734.11218073,0.00022999,2]
[312753885,1706194542133,-734.11218073,0.00022999,2]
[312753886,1706194542158,-734.11218073,0.00022999,2]
[312753887,1706194542183,-734.11218073,0.00022999,2]
[312753888,1706194542208,-734.11218073,0.00022999,2]
[312753889,1706194542235,-734.11218073,0.00022999,2]
[312753890,1706194542263,-734.11218073,0.00022999,2]
[312753891,1706194542289,-734.11218073,0.00022999,2]
[312753892,1706194542313,-734.11218073,0.00022999,2]
[312753893,1706194542342,-734.11218073,0.00022999,2]
[312753894,1706194542367,-734.11218073,0.00022999,2]
[312753895,1706194542391,-734.11218073,0.00022999,2]
[312753896,1706194542417,-734.11218073,0.00022999,2]
[312753897,1706194542441,-734.11218073,0.00022999,2]
[312753898,1706194542465,-734.11218073,0.00022999,2]
[312753899,1706194542490,-734.11218073,0.00022999,2]
[312753900,1706194542514,-734.11218073,0.00022999,2]
[312753901,1706194542539,-734.11218073,0.00022999,2]
[312753902,1706194542563,-734.11218073,0.00022999,2]
[312753903,1706194542588,-734.11218073,0.00022999,2]
[312753904,1706194542612,-499.99999999,0.00022999,2]
[312753905,1706194542636,-500.0,0.00022999,2]
[312753906,1706194542661,-500.0,0.00022999,2]
[312753907,1706194542685,-500.0,0.00022999,2]
[312753908,1706194542708,-250.0,0.00022999,2]
[312753909,1706194542733,-4365.71587166,0.00022999,2]
[312753910,1706194542759,-4365.71587166,0.00022999,2]
[312753911,1706194542785,-4365.71587166,0.00022999,2]
[312753912,1706194542810,-4365.71587166,0.00022999,2]
[312753913,1706194542835,-4365.71587166,0.00022999,2]
[312753914,1706194542860,-4365.71587166,0.00022999,2]
[312753915,1706194542884,-4365.71587166,0.00022999,2]
[312753916,1706194542909,-4365.71587166,0.00022999,2]
[312753917,1706194542933,-4365.71587166,0.00022999,2]
[312753918,1706194542958,-4365.71587166,0.00022999,2]
[312753919,1706194542985,-4365.71587166,0.00022999,2]
[312753920,1706194543010,-4365.71587166,0.00022999,2]
[312753921,1706194543035,-4365.71587166,0.00022999,2]
[312753922,1706194543060,-4365.71587166,0.00022999,2]
[312753923,1706194543086,-4365.71587166,0.00022999,2]
[312753924,1706194543112,-4365.71587166,0.00022999,2]
[312753925,1706194543138,-4365.71587166,0.00022999,2]
[312753926,1706194543163,-4365.71587166,0.00022999,2]
[312753927,1706194543189,-4365.71587166,0.00022999,2]
[312753928,1706194543215,-4365.71587166,0.00022999,2]
[312753929,1706194543240,-4365.71587166,0.00022999,2]
[312753930,1706194543267,-4365.71587166,0.00022999,2]
[312753931,1706194543291,-4365.71587166,0.00022999,2]
[312753932,1706194543315,-4365.71587166,0.00022999,2]
[312753933,1706194543340,-4365.71587156,0.00022999,2]
[312753934,1706194543364,-370.78030668,0.00022999,2]
[312753935,1706194543387,-2582.9364217,0.00023,2]
[312753936,1706194543413,-2544858.45065485,0.00023,2]
[312753937,1706194543519,200.0,0.000221,8]
[312753938,1706194653709,155.42229511,0.0001989,2]
[312753940,1706194667521,6902.04669307,0.00020697,5]
[312753941,1706194667546,4226.05122876,0.00020697,5]
[312753943,1706194676076,421.02,0.00022056,2]
[312753944,1706194678817,454.70649829,0.000221,2]
[312753945,1706194684240,176.29355823,0.000221,2]
[312753946,1706194686234,669.86521771,0.000221,2]
[312753947,1706194688796,1477.06349701,0.00022056,2]
[312753948,1706194688821,7425.0,0.00022056,2]
[312753949,1706194688843,2997.93650299,0.00022056,2]
[312753950,1706194689295,852.79586051,0.000221,4]
[312753951,1706194689965,375.16664522,0.000221,2]
[312753952,1706194691173,156.86047358,0.000221,2]
[312753953,1706194691832,155.28399107,0.000221,2]
[312753954,1706194695864,939.5661534,0.000221,2]